fUSD/lending_fUSD_20250930
["ID","MTS","AMOUNT","RATE_DAILY","PERIOD"]
[388514083,1759227050825,-151.0,0.00019484,2]
[388514084,1759227050834,-3458.72,0.00019484,2]
[388514085,1759227050844,-151.0,0.00019484,2]
[388514086,1759227050855,-237.071723,0.00019484,2]
[388514087,1759227050865,-157.648966,0.00019484,2]
[388514088,1759227050875,-157.648966,0.00019484,2]
[388514089,1759227050884,-855.78,0.00019484,2]
[388514090,1759227050894,-157.648966,0.00019484,2]
[388514091,1759227050903,-157.648966,0.00019484,2]
[388514092,1759227050913,-4384.52,0.00019484,2]
[388514093,1759227050923,-286.453146,0.00019484,2]
[388514094,1759227050933,-286.453146,0.00019484,2]
[388514095,1759227050942,-286.453146,0.00019484,2]
[388514096,1759227050952,-3827.58,0.00019484,2]
[388514097,1759227050961,-151.0,0.00019484,2]
[388514098,1759227050970,-162.187437,0.00019484,2]
[388514099,1759227050980,-162.187437,0.00019484,2]
[388514100,1759227050989,-162.187437,0.00019484,2]
[388514101,1759227050999,-156.519347,0.00019484,2]
[388514102,1759227051009,-2024.46,0.00019484,2]
[388514103,1759227051018,-162.187437,0.00019484,2]
[388514104,1759227051028,-286.453146,0.00019484,2]
[388514105,1759227051038,-151.0,0.00019484,2]
[388514106,1759227051047,-163.65892,0.00019484,2]
[388514107,1759227051058,-1836.75,0.00019484,2]
[388514108,1759227051068,-151.0,0.00019484,2]
[388514109,1759227051077,-151.0,0.00019484,2]
[388514110,1759227051087,-1821.69,0.00019484,2]
[388514111,1759227051096,-176.858792,0.00019484,2]
[388514112,1759227051106,-176.858792,0.00019484,2]
[388514113,1759227051116,-176.858792,0.00019484,2]
[388514114,1759227051126,-176.858792,0.00019484,2]
[388514115,1759227051135,-500.0,0.00019484,2]
[388514116,1759227051144,-3422.82,0.00019484,2]
[388514117,1759227051153,-500.0,0.00019484,2]
[388514118,1759227051163,-2546.41,0.00019484,2]
[388514119,1759227051173,-151.0,0.00019484,2]
[388514120,1759227051182,-3190.51,0.00019484,2]
[388514121,1759227051192,-162.266241,0.00019484,2]
[388514122,1759227051202,-2986.81,0.00019484,2]
[388514123,1759227051211,-151.0,0.00019484,2]
[388514124,1759227051220,-151.0,0.00019484,2]
[388514125,1759227051230,-151.0,0.00019484,2]
[388514126,1759227051239,-151.0,0.00019484,2]
[388514127,1759227051250,-151.0,0.00019484,2]
[388514128,1759227051259,-151.0,0.00019484,2]
[388514129,1759227051269,-151.0,0.00019484,2]
[388514130,1759227051279,-151.0,0.00019484,2]
[388514131,1759227051288,-191.925928,0.00019484,2]
[388514132,1759227051298,-191.925928,0.00019484,2]
[388514133,1759227051308,-3849.12,0.00019484,2]
[388514134,1759227051318,-221.808555,0.00019484,2]
[388514135,1759227051327,-221.808555,0.00019484,2]
[388514136,1759227051337,-191.925928,0.00019484,2]
[388514137,1759227051346,-191.925928,0.00019484,2]
[388514138,1759227051356,-191.925928,0.00019484,2]
[388514139,1759227051370,-191.925928,0.00019484,2]
[388514140,1759227051379,-166.037285,0.00019484,2]
[388514141,1759227051388,-191.925928,0.00019484,2]
[388514142,1759227051399,-191.925928,0.00019484,2]
[388514143,1759227051408,-3097.6,0.00019484,2]
[388514144,1759227051418,-151.0,0.00019484,2]
[388514145,1759227051427,-151.0,0.00019484,2]
[388514146,1759227051439,-151.0,0.00019484,2]
[388514147,1759227051449,-151.0,0.00019484,2]
[388514148,1759227051459,-151.0,0.00019484,2]
[388514149,1759227051469,-151.0,0.00019484,2]
[388514150,1759227051479,-151.0,0.00019484,2]
[388514151,1759227051488,-151.0,0.00019484,2]
[388514152,1759227051498,-151.0,0.00019484,2]
[388514153,1759227051507,-151.0,0.00019484,2]
[388514154,1759227051517,-2248.67,0.00019484,2]
[388514155,1759227051526,-151.0,0.00019484,2]
[388514156,1759227051535,-151.0,0.00019484,2]
[388514157,1759227051544,-478.237203,0.00019484,2]
[388514158,1759227051554,-478.237203,0.00019484,2]
[388514159,1759227051564,-478.237203,0.00019484,2]
[388514160,1759227051575,-478.237203,0.00019484,2]
[388514161,1759227051585,-478.237203,0.00019484,2]
[388514162,1759227051594,-478.237203,0.00019484,2]
[388514163,1759227051604,-4199.72,0.00019484,2]
[388514164,1759227051613,-478.237203,0.00019484,2]
[388514165,1759227051622,-478.237203,0.00019484,2]
[388514166,1759227051632,-500.0,0.00019484,2]
[388514167,1759227051641,-500.0,0.00019484,2]
[388514168,1759227051650,-500.0,0.00019484,2]
[388514169,1759227051660,-500.0,0.00019484,2]
[388514170,1759227051670,-500.0,0.00019484,2]
[388514171,1759227051680,-500.0,0.00019484,2]
[388514172,1759227051689,-151.0,0.00019484,2]
[388514173,1759227051700,-151.0,0.00019484,2]
[388514174,1759227051710,-151.0,0.00019484,2]
[388514175,1759227051719,-151.0,0.00019484,2]
[388514176,1759227051729,-4797.41,0.00019484,2]
[388514177,1759227051738,-151.0,0.00019484,2]
[388514178,1759227051748,-151.0,0.00019484,2]
[388514179,1759227051758,-151.0,0.00019484,2]
[388514180,1759227051768,-284.433607,0.00019484,2]
[388514181,1759227051777,-1879.53,0.00019484,2]
[388514182,1759227051786,-201.207258,0.00019484,2]
[388514183,1759227051796,-201.207258,0.00019484,2]
[388514184,1759227051806,-201.207258,0.00019484,2]
[388514185,1759227051816,-201.207258,0.00019484,2]
[388514186,1759227051825,-201.207258,0.00019484,2]
[388514187,1759227051835,-201.207258,0.00019484,2]
[388514188,1759227051845,-201.207258,0.00019484,2]
[388514189,1759227051854,-201.207258,0.00019484,2]
[388514190,1759227051864,-151.0,0.00019484,2]
[388514191,1759227051874,-151.0,0.00019484,2]
[388514192,1759227051883,-558.7012919,0.00019484,2]
[388514193,1759227051893,-151.0,0.00019484,2]
[388514194,1759227051903,-151.0,0.00019484,2]
[388514195,1759227051913,-3074.9,0.00019484,2]
[388514196,1759227051922,-1159.82023,0.00019484,2]
[388514197,1759227051932,-1159.82023,0.00019484,2]
[388514198,1759227051942,-1159.82023,0.00019484,2]
[388514199,1759227051951,-1159.82023,0.00019484,2]
[388514200,1759227051962,-1159.82023,0.00019484,2]
[388514201,1759227051971,-1159.82023,0.00019484,2]
[388514202,1759227051981,-1159.82023,0.00019484,2]
[388514203,1759227052333,-1159.82023,0.00019484,2]
[388514204,1759227052418,-3148.25,0.00019484,2]
[388514205,1759227052428,-4987.84,0.00019484,2]
[388514206,1759227052440,-9939.93,0.00019484,2]
[388514207,1759227052449,-1385.9,0.00019484,2]
[388514208,1759227052458,-893.52,0.00019484,2]
[388514209,1759227052467,-893.52,0.00019484,2]
[388514210,1759227052476,-893.52,0.00019484,2]
[388514211,1759227052485,-893.52,0.00019484,2]
[388514212,1759227052494,-12825.12,0.00019484,2]
[388514213,1759227052504,-893.52,0.00019484,2]
[388514214,1759227052513,-1436.95,0.00019484,2]
[388514215,1759227052522,-893.52,0.00019484,2]
[388514216,1759227052532,-154.890329,0.00019484,2]
[388514217,1759227052541,-3034.44,0.00019484,2]
[388514218,1759227052551,-1344.64,0.00019484,2]
[388514219,1759227052560,-10000.0,0.00019484,9]
[388514220,1759227052570,-10000.0,0.00019484,9]
[388514221,1759227052579,-10000.0,0.00019484,9]
[388514222,1759227052588,-151.0,0.00019484,2]
[388514223,1759227052598,-10000.0,0.00019484,9]
[388514224,1759227052607,-10000.0,0.00019484,9]
[388514225,1759227052616,-10000.0,0.00019484,9]
[388514226,1759227052626,-10000.0,0.00019484,9]
[388514227,1759227052635,-10000.0,0.00019484,9]
[388514228,1759227052645,-10000.0,0.00019484,9]
[388514229,1759227052655,-10000.0,0.00019484,9]
[388514230,1759227052665,-10000.0,0.00019484,9]
[388514231,1759227052674,-10000.0,0.00019484,9]
[388514232,1759227052683,-7332.97399542,0.00019484,9]
[388514233,1759227052693,-151.0,0.00019484,2]
[388514234,1759227052702,-14810.82,0.00019484,2]
[388514235,1759227052711,-151.0,0.00019484,2]
[388514236,1759227052720,-151.0,0.00019484,2]
[388514237,1759227052729,-151.0,0.00019484,2]
[388514238,1759227052738,-151.0,0.00019484,2]
[388514239,1759227052748,-151.0,0.00019484,2]
[388514240,1759227052757,-151.0,0.00019484,2]
[388514241,1759227052767,-2708.61,0.00019484,2]
[388514242,1759227052776,-151.0,0.00019484,2]
[388514243,1759227052786,-151.0,0.00019484,2]
[388514244,1759227052795,-151.0,0.00019484,2]
[388514245,1759227052806,-151.0,0.00019484,2]
[388514246,1759227052816,-151.0,0.00019484,2]
[388514247,1759227052827,-237.534931,0.00019484,2]
[388514248,1759227052837,-151.0,0.00019484,2]
[388514249,1759227052846,-151.0,0.00019484,2]
[388514250,1759227052856,-151.0,0.00019484,2]
[388514251,1759227052865,-151.0,0.00019484,2]
[388514252,1759227052875,-3166.02,0.00019484,2]
[388514253,1759227052884,-4148.43,0.00019484,2]
[388514254,1759227052894,-949.97,0.00019484,2]
[388514255,1759227052904,-3090.4,0.00019484,2]
[388514256,1759227052914,-225.060142,0.00019484,2]
[388514257,1759227052923,-225.060142,0.00019484,2]
[388514258,1759227052934,-324.33063153,0.00019484,2]
[388514259,1759227053879,-428.55936847,0.00019484,2]
[388514260,1759227053890,-212.3137149,0.00019484,2]
[388514261,1759227053975,-12.7464271,0.00019484,2]
[388514262,1759227053985,-225.060142,0.00019484,2]
[388514263,1759227053996,-225.060142,0.00019484,2]
[388514264,1759227054006,-225.060142,0.00019484,2]
[388514265,1759227054016,-151.0,0.00019484,2]
[388514266,1759227054026,-151.0,0.00019484,2]
[388514267,1759227054038,-151.0,0.00019484,2]
[388514268,1759227054047,-138.33904308,0.00019484,2]
[388514269,1759227054060,-86.72109892,0.00019484,2]
[388514270,1759227054071,-151.0,0.00019484,2]
[388514271,1759227054082,-225.060142,0.00019484,2]
[388514272,1759227054092,-151.0,0.00019484,2]
[388514273,1759227054102,-898.40988107,0.00019484,2]
[388514274,1759227054136,-1587.19011893,0.00019484,2]
[388514275,1759227054146,-257.745382,0.00019484,2]
[388514276,1759227054156,-2583.42,0.00019484,2]
[388514277,1759227054166,-185.69407,0.00019484,2]
[388514278,1759227054175,-249.749127,0.00019484,2]
[388514279,1759227054185,-151.0,0.00019484,2]
[388514280,1759227054194,-249.749127,0.00019484,2]
[388514281,1759227054204,-151.0,0.00019484,2]
[388514282,1759227054213,-249.749127,0.00019484,2]
[388514283,1759227054223,-151.0,0.00019484,2]
[388514284,1759227054233,-249.749127,0.00019484,2]
[388514285,1759227054243,-151.0,0.00019484,2]
[388514286,1759227054253,-249.749127,0.00019484,2]
[388514287,1759227054264,-249.749127,0.00019484,2]
[388514288,1759227054273,-3106.92,0.00019484,2]
[388514289,1759227054283,-3106.92,0.00019484,2]
[388514290,1759227054294,-3106.92,0.00019484,2]
[388514291,1759227054305,-3106.92,0.00019484,2]
[388514292,1759227054316,-1641.77566707,0.00019484,2]
[388514293,1759227055321,-1023.24592403,0.00018967,2]
[388514294,1759227055332,-1666.92887226,0.00018967,2]
[388514295,1759227055342,-1544.82520371,0.00018967,2]
[388514296,1759227055352,-1019.0,0.00019384,2]
[388514297,1759227055367,-151.0,0.00019483,2]
[388514298,1759227055376,-151.0,0.00019483,2]
[388514299,1759227055385,-153.286304,0.00019483,2]
[388514300,1759227055394,-5009.9,0.00019483,2]
[388514301,1759227055405,-1465.14433293,0.00019484,2]
[388514302,1759227055414,-249.749127,0.00019484,2]
[388514303,1759227055423,-3106.92,0.00019484,2]
[388514304,1759227055433,-249.749127,0.00019484,2]
[388514305,1759227055443,-500.0,0.00019484,2]
[388514306,1759227055452,-1300.89743134,0.00019484,2]
[388514307,1759227055463,-2135.78256866,0.00019484,2]
[388514308,1759227055472,-3072.76,0.00019484,2]
[388514309,1759227055481,-162.626164,0.00019484,2]
[388514310,1759227055490,-183.932224,0.00019484,2]
[388514311,1759227055499,-183.932224,0.00019484,2]
[388514312,1759227055508,-151.0,0.00019484,2]
[388514313,1759227055518,-271.537709,0.00019484,2]
[388514314,1759227055527,-183.932224,0.00019484,2]
[388514315,1759227055536,-500.0,0.00019484,2]
[388514316,1759227055545,-183.932224,0.00019484,2]
[388514317,1759227055555,-183.932224,0.00019484,2]
[388514318,1759227055564,-183.932224,0.00019484,2]
[388514319,1759227055573,-10335.96,0.00019484,2]
[388514320,1759227055582,-183.932224,0.00019484,2]
[388514321,1759227055592,-159.67613,0.00019484,2]
[388514322,1759227055601,-728.31,0.00019484,2]
[388514323,1759227055611,-159.67613,0.00019484,2]
[388514324,1759227055619,-183.932224,0.00019484,2]
[388514325,1759227055628,-657.766558,0.00019484,2]
[388514326,1759227055638,-657.766558,0.00019484,2]
[388514327,1759227055647,-159.67613,0.00019484,2]
[388514328,1759227055656,-159.67613,0.00019484,2]
[388514329,1759227055666,-657.766558,0.00019484,2]
[388514330,1759227055674,-657.766558,0.00019484,2]
[388514331,1759227055683,-657.766558,0.00019484,2]
[388514332,1759227055692,-159.67613,0.00019484,2]
[388514333,1759227055701,-159.67613,0.00019484,2]
[388514334,1759227055711,-657.766558,0.00019484,2]
[388514335,1759227055719,-161.521943,0.00019484,2]
[388514336,1759227055729,-657.766558,0.00019484,2]
[388514337,1759227055738,-159.67613,0.00019484,2]
[388514338,1759227055749,-657.766558,0.00019484,2]
[388514339,1759227055758,-159.67613,0.00019484,2]
[388514340,1759227055767,-151.0,0.00019484,2]
[388514341,1759227055777,-151.0,0.00019484,2]
[388514342,1759227055786,-151.0,0.00019484,2]
[388514343,1759227055795,-1527.3,0.00019484,2]
[388514344,1759227055805,-151.0,0.00019484,2]
[388514345,1759227055814,-151.0,0.00019484,2]
[388514346,1759227055823,-246.561648,0.00019484,2]
[388514347,1759227055834,-151.0,0.00019484,2]
[388514348,1759227055842,-151.0,0.00019484,2]
[388514349,1759227055851,-4415.23,0.00019484,2]
[388514350,1759227055860,-1554.97,0.00019484,2]
[388514351,1759227055869,-4894.42,0.00019484,2]
[388514352,1759227055879,-2905.33,0.00019484,2]
[388514353,1759227055888,-5188.51,0.00019484,2]
[388514354,1759227055898,-500.0,0.00019484,2]
[388514355,1759227055908,-5118.93,0.00019484,2]
[388514356,1759227055918,-500.0,0.00019484,2]
[388514357,1759227055928,-972.18,0.00019484,2]
[388514358,1759227055937,-192.98673189,0.00019484,2]
[388514359,1759227055951,-1145.24146611,0.00019484,2]
[388514361,1759227055962,-151.0,0.00019484,2]
[388514362,1759227055971,-1338.228198,0.00019484,2]
[388514363,1759227055980,-151.0,0.00019484,2]
[388514364,1759227055990,-1507.18,0.00019484,2]
[388514365,1759227055999,-1338.228198,0.00019484,2]
[388514366,1759227056008,-151.0,0.00019484,2]
[388514367,1759227056017,-1338.228198,0.00019484,2]
[388514368,1759227056027,-151.0,0.00019484,2]
[388514369,1759227056037,-1338.228198,0.00019484,2]
[388514370,1759227056047,-151.0,0.00019484,2]
[388514371,1759227056056,-2845.84,0.00019484,2]
[388514372,1759227056066,-1338.228198,0.00019484,2]
[388514373,1759227056075,-152.875998,0.00019484,2]
[388514374,1759227056084,-1338.228198,0.00019484,2]
[388514375,1759227056093,-1338.228191,0.00019484,2]
[388514376,1759227056102,-5851.63,0.00019484,2]
[388514377,1759227056112,-151.0,0.00019484,2]
[388514378,1759227056121,-151.0,0.00019484,2]
[388514379,1759227056131,-1015.290864,0.00019484,2]
[388514380,1759227056140,-1015.290864,0.00019484,2]
[388514381,1759227056149,-125.24327547,0.00019484,2]
[388514382,1759227056161,-890.04758853,0.00019484,2]
[388514383,1759227056171,-24.46316311,0.00019484,2]
[388514384,1759227056182,-126.53683689,0.00019484,2]
[388514385,1759227056193,-1015.290864,0.00019484,2]
[388514386,1759227056202,-151.0,0.00019484,2]
[388514387,1759227056211,-151.0,0.00019484,2]
[388514388,1759227056221,-1015.290864,0.00019484,2]
[388514389,1759227056230,-247.072488,0.00019484,2]
[388514390,1759227056239,-1015.290864,0.00019484,2]
[388514391,1759227056247,-1035.29,0.00019484,2]
[388514392,1759227056257,-1015.290864,0.00019484,2]
[388514393,1759227056266,-1015.290864,0.00019484,2]
[388514394,1759227056275,-3266.62,0.00019484,2]
[388514395,1759227056284,-6681.04,0.00019484,2]
[388514396,1759227056293,-1394.98,0.00019484,2]
[388514397,1759227056302,-5410.77,0.00019484,2]
[388514398,1759227056312,-391.176994,0.00019484,2]
[388514399,1759227056321,-391.176994,0.00019484,2]
[388514400,1759227056330,-391.176994,0.00019484,2]
[388514401,1759227056340,-391.176994,0.00019484,2]
[388514402,1759227056349,-391.176994,0.00019484,2]
[388514403,1759227056358,-391.176994,0.00019484,2]
[388514404,1759227056374,-151.0,0.00019484,2]
[388514405,1759227056383,-151.0,0.00019484,2]
[388514406,1759227056392,-391.176994,0.00019484,2]
[388514407,1759227056403,-391.176994,0.00019484,2]
[388514408,1759227056412,-151.0,0.00019484,2]
[388514409,1759227056421,-151.0,0.00019484,2]
[388514410,1759227056430,-151.0,0.00019484,2]
[388514411,1759227056440,-151.0,0.00019484,2]
[388514412,1759227056451,-151.0,0.00019484,2]
[388514413,1759227056460,-151.0,0.00019484,2]
[388514414,1759227056469,-8038.71,0.00019484,2]
[388514415,1759227056478,-151.0,0.00019484,2]
[388514416,1759227056488,-151.0,0.00019484,2]
[388514417,1759227056497,-1682.88,0.00019484,2]
[388514418,1759227056507,-179.049699,0.00019484,2]
[388514419,1759227056516,-2112.93,0.00019484,2]
[388514420,1759227056526,-151.0,0.00019484,2]
[388514421,1759227056535,-3372.26,0.00019484,2]
[388514422,1759227056545,-151.0,0.00019484,2]
[388514423,1759227056554,-171.082688,0.00019484,2]
[388514424,1759227056564,-151.0,0.00019484,2]
[388514425,1759227056573,-151.0,0.00019484,2]
[388514426,1759227056582,-151.0,0.00019484,2]
[388514427,1759227056591,-167.265908,0.00019484,2]
[388514428,1759227056600,-500.0,0.00019485,2]
[388514429,1759227056610,-500.0,0.00019485,2]
[388514430,1759227056619,-649.85,0.00019485,2]
[388514431,1759227056628,-500.0,0.00019485,2]
[388514432,1759227056637,-500.0,0.00019485,2]
[388514433,1759227056646,-500.0,0.00019485,2]
[388514434,1759227056656,-500.0,0.00019485,2]
[388514435,1759227056665,-500.0,0.00019485,2]
[388514436,1759227056674,-761.28,0.00019485,2]
[388514437,1759227056683,-2621.69,0.00019485,2]
[388514438,1759227056692,-967.03,0.00019485,2]
[388514439,1759227056701,-2503.48,0.00019485,2]
[388514440,1759227056710,-741.97,0.00019485,2]
[388514441,1759227056719,-500.0,0.00019485,2]
[388514442,1759227056728,-500.0,0.00019485,2]
[388514443,1759227056737,-1472.3,0.00019485,2]
[388514444,1759227056747,-660.64,0.00019485,2]
[388514445,1759227056756,-868.4,0.00019485,2]
[388514446,1759227056765,-455.09354531,0.00019485,2]
[388514447,1759227056775,-500.0,0.00019485,2]
[388514448,1759227056784,-500.0,0.00019485,2]
[388514449,1759227056794,-500.0,0.00019485,2]
[388514450,1759227056803,-830.56,0.00019485,2]
[388514451,1759227056813,-795.96,0.00019485,2]
[388514452,1759227056824,-640.19,0.00019485,2]
[388514453,1759227056833,-520.67,0.00019485,2]
[388514454,1759227056842,-912.92,0.00019485,2]
[388514455,1759227056852,-1126.53,0.00019485,2]
[388514456,1759227056861,-1149.41,0.00019485,2]
[388514457,1759227056870,-1339.6,0.00019485,2]
[388514458,1759227056879,-664.18,0.00019485,2]
[388514459,1759227056888,-511.84787022,0.00019485,2]
[388514460,1759227056898,-500.0,0.00019485,2]
[388514461,1759227056907,-500.0,0.00019485,2]
[388514462,1759227056916,-1000.0,0.00019485,2]
[388514463,1759227056926,-154.475121,0.00019485,2]
[388514464,1759227056934,-151.0,0.00019485,2]
[388514465,1759227056943,-151.0,0.00019485,2]
[388514466,1759227056952,-151.669053,0.00019485,2]
[388514467,1759227056961,-232.401862,0.00019485,2]
[388514468,1759227056970,-151.0,0.00019485,2]
[388514469,1759227056979,-243.457136,0.00019485,2]
[388514470,1759227056989,-151.0,0.00019485,2]
[388514471,1759227056998,-151.0,0.00019485,2]
[388514472,1759227057009,-151.0,0.00019485,2]
[388514473,1759227057019,-151.612955,0.00019485,2]
[388514474,1759227057027,-151.0,0.00019485,2]
[388514475,1759227057036,-151.262489,0.00019485,2]
[388514476,1759227057046,-151.0,0.00019485,2]
[388514477,1759227057055,-151.0,0.00019485,2]
[388514478,1759227057064,-151.0,0.00019485,2]
[388514479,1759227057073,-526.0,0.00019485,2]
[388514480,1759227057082,-526.0,0.00019485,2]
[388514481,1759227057092,-151.0,0.00019485,2]
[388514482,1759227057101,-151.0,0.00019485,2]
[388514483,1759227057110,-151.0,0.00019485,2]
[388514484,1759227057119,-151.0,0.00019485,2]
[388514485,1759227057129,-1005.69,0.00019485,2]
[388514486,1759227057138,-1685.06,0.00019485,2]
[388514487,1759227057146,-1483.93,0.00019485,2]
[388514488,1759227057155,-1483.93,0.00019485,2]
[388514489,1759227057163,-151.0,0.00019485,2]
[388514490,1759227057172,-151.0,0.00019485,2]
[388514491,1759227057181,-151.0,0.00019485,2]
[388514492,1759227057190,-153.993705,0.00019485,2]
[388514493,1759227057199,-151.0,0.00019485,2]
[388514494,1759227057209,-151.0,0.00019485,2]
[388514495,1759227057219,-156.872784,0.00019485,2]
[388514496,1759227057228,-151.0,0.00019485,2]
[388514497,1759227057237,-151.0,0.00019485,2]
[388514498,1759227057246,-151.0,0.00019485,2]
[388514499,1759227057255,-151.0,0.00019485,2]
[388514500,1759227057265,-151.0,0.00019485,2]
[388514501,1759227057274,-151.0,0.00019485,2]
[388514502,1759227057284,-151.0,0.00019485,2]
[388514503,1759227057294,-3630.97,0.00019485,2]
[388514504,1759227057303,-151.0,0.00019485,2]
[388514505,1759227057313,-151.0,0.00019485,2]
[388514506,1759227057323,-151.0,0.00019485,2]
[388514507,1759227057332,-151.0,0.00019485,2]
[388514508,1759227057341,-210.598259,0.00019485,2]
[388514509,1759227057351,-151.0,0.00019485,2]
[388514510,1759227057360,-151.0,0.00019485,2]
[388514511,1759227057373,-151.0,0.00019485,2]
[388514512,1759227057383,-151.0,0.00019485,2]
[388514513,1759227057391,-153.623347,0.00019485,2]
[388514514,1759227057401,-5216.95,0.00019485,2]
[388514515,1759227057411,-222.920943,0.00019485,2]
[388514516,1759227057420,-151.0,0.00019485,2]
[388514517,1759227057430,-151.0,0.00019485,2]
[388514518,1759227057440,-152.054224,0.00019485,2]
[388514519,1759227057450,-151.0,0.00019485,2]
[388514520,1759227057459,-151.0,0.00019485,2]
[388514521,1759227057468,-151.0,0.00019485,2]
[388514522,1759227057478,-151.0,0.00019485,2]
[388514523,1759227057488,-159.004046,0.00019485,2]
[388514524,1759227057497,-151.0,0.00019485,2]
[388514525,1759227057506,-151.0,0.00019485,2]
[388514526,1759227057516,-151.0,0.00019485,2]
[388514527,1759227057524,-151.0,0.00019485,2]
[388514528,1759227057532,-3386.8,0.00019485,2]
[388514529,1759227057541,-224.406,0.00019485,2]
[388514530,1759227057551,-151.0,0.00019485,2]
[388514531,1759227057560,-151.0,0.00019485,2]
[388514532,1759227057571,-151.0,0.00019485,2]
[388514533,1759227057580,-152.275227,0.00019485,2]
[388514534,1759227057590,-151.0,0.00019485,2]
[388514535,1759227057599,-183.245793,0.00019485,2]
[388514536,1759227057608,-151.0,0.00019485,2]
[388514537,1759227057618,-151.0,0.00019485,2]
[388514538,1759227057628,-151.0,0.00019485,2]
[388514539,1759227057638,-151.0,0.00019485,2]
[388514540,1759227057647,-151.0,0.00019485,2]
[388514541,1759227057657,-151.0,0.00019485,2]
[388514542,1759227057667,-169.320197,0.00019485,2]
[388514543,1759227057677,-169.320197,0.00019485,2]
[388514544,1759227057687,-151.0,0.00019485,2]
[388514545,1759227057696,-254.822242,0.00019485,2]
[388514546,1759227057706,-151.0,0.00019485,2]
[388514547,1759227057715,-151.0,0.00019485,2]
[388514548,1759227057725,-254.822242,0.00019485,2]
[388514549,1759227057734,-169.320197,0.00019485,2]
[388514550,1759227057743,-151.0,0.00019485,2]
[388514551,1759227057753,-169.320197,0.00019485,2]
[388514552,1759227057762,-151.0,0.00019485,2]
[388514553,1759227057772,-151.0,0.00019485,2]
[388514554,1759227057781,-169.320197,0.00019485,2]
[388514555,1759227057792,-169.320197,0.00019485,2]
[388514556,1759227057801,-169.320197,0.00019485,2]
[388514557,1759227057812,-169.320197,0.00019485,2]
[388514558,1759227057823,-1804.46,0.00019485,2]
[388514559,1759227057833,-4312.64,0.00019485,2]
[388514560,1759227057842,-254.822242,0.00019485,2]
[388514561,1759227057851,-254.822242,0.00019485,2]
[388514562,1759227057861,-254.822242,0.00019485,2]
[388514563,1759227057870,-254.822242,0.00019485,2]
[388514564,1759227057879,-254.822242,0.00019485,2]
[388514565,1759227057889,-254.822242,0.00019485,2]
[388514566,1759227057900,-151.0,0.00019485,2]
[388514567,1759227057909,-154.967573,0.00019485,2]
[388514568,1759227057918,-1891.42,0.00019485,2]
[388514569,1759227057943,-151.0,0.00019485,2]
[388514570,1759227057953,-227.909082,0.00019485,2]
[388514571,1759227057962,-151.0,0.00019485,2]
[388514572,1759227057971,-171.443129,0.00019485,2]
[388514573,1759227057982,-3785.72,0.00019485,2]
[388514574,1759227057991,-153.617248,0.00019485,2]
[388514575,1759227058001,-151.0,0.00019485,2]
[388514576,1759227058011,-151.0,0.00019485,2]
[388514577,1759227058021,-151.0,0.00019485,2]
[388514578,1759227058031,-151.0,0.00019485,2]
[388514579,1759227058040,-151.0,0.00019485,2]
[388514580,1759227058050,-151.0,0.00019485,2]
[388514581,1759227058062,-4217.17,0.00019485,2]
[388514582,1759227058072,-151.0,0.00019485,2]
[388514583,1759227058082,-151.0,0.00019485,2]